fUSD/lending_fUSD_20250421
["ID","MTS","AMOUNT","RATE_DAILY","PERIOD"]
[358577025,1745273507871,-500.0,0.00047123,7]
[358577026,1745273507884,-1335.52,0.00047123,7]
[358577027,1745273507895,-500.0,0.00047123,7]
[358577028,1745273507907,-500.0,0.00047123,7]
[358577029,1745273507919,-816.95,0.00047123,7]
[358577030,1745273507931,-672.04,0.00047123,7]
[358577031,1745273507943,-183.897924,0.00047123,14]
[358577032,1745273507956,-500.0,0.00047123,7]
[358577033,1745273507968,-1122.27,0.00047123,7]
[358577034,1745273507979,-500.0,0.00047123,7]
[358577035,1745273507991,-183.897924,0.00047123,14]
[358577036,1745273508003,-500.0,0.00047123,7]
[358577037,1745273508015,-500.0,0.00047123,7]
[358577038,1745273508027,-583.75,0.00047123,7]
[358577039,1745273508039,-762.02,0.00047123,7]
[358577040,1745273508052,-941.01,0.00047123,7]
[358577041,1745273508064,-500.0,0.00047123,7]
[358577042,1745273508077,-500.0,0.00047123,7]
[358577043,1745273508088,-151.0,0.00047123,14]
[358577044,1745273508100,-500.0,0.00047123,7]
[358577045,1745273508112,-500.0,0.00047123,7]
[358577046,1745273508124,-500.0,0.00047123,7]
[358577047,1745273508137,-500.0,0.00047123,7]
[358577048,1745273508148,-500.0,0.00047123,7]
[358577049,1745273508165,-500.0,0.00047123,7]
[358577050,1745273508177,-500.0,0.00047123,7]
[358577051,1745273508189,-500.0,0.00047123,7]
[358577052,1745273508201,-500.0,0.00047123,7]
[358577053,1745273508213,-500.0,0.00047123,7]
[358577054,1745273508225,-328.46325916,0.00047123,7]
[358577055,1745273508238,-500.0,0.00047123,7]
[358577056,1745273508250,-500.0,0.00047123,7]
[358577057,1745273508261,-500.0,0.00047123,7]
[358577058,1745273508274,-1158.5,0.00047123,7]
[358577059,1745273508286,-772.47,0.00047123,7]
[358577060,1745273508297,-500.0,0.00047123,7]
[358577061,1745273508309,-500.0,0.00047123,7]
[358577062,1745273508321,-159.768622,0.00047123,14]
[358577063,1745273508333,-500.0,0.00047123,7]
[358577064,1745273508346,-500.0,0.00047123,7]
[358577065,1745273508357,-500.0,0.00047123,7]
[358577066,1745273508369,-306.760662,0.00047123,7]
[358577067,1745273508381,-159.768613,0.00047123,14]
[358577068,1745273508394,-583.01,0.00047123,7]
[358577069,1745273508407,-500.0,0.00047123,7]
[358577070,1745273508420,-500.0,0.00047123,7]
[358577071,1745273508431,-500.0,0.00047123,7]
[358577072,1745273508442,-151.0,0.00047123,14]
[358577073,1745273508454,-500.0,0.00047123,7]
[358577074,1745273508810,-569.68416918,0.00047123,7]
[358577075,1745273508822,-500.0,0.00047123,7]
[358577076,1745273508831,-973.17,0.00047123,7]
[358577077,1745273508841,-500.0,0.00047123,7]
[358577078,1745273508850,-500.0,0.00047123,7]
[358577079,1745273508860,-867.69,0.00047123,7]
[358577080,1745273508869,-901.45,0.00047123,7]
[358577081,1745273508879,-1047.72,0.00047123,7]
[358577082,1745273508889,-996.82,0.00047123,7]
[358577083,1745273508898,-541.26834805,0.00047123,7]
[358577084,1745273508908,-294.1997433,0.00047123,7]
[358577085,1745273508917,-1136.8,0.00047123,7]
[358577086,1745273508926,-1393.67,0.00047123,7]
[358577087,1745273508935,-919.49,0.00047123,7]
[358577088,1745273508944,-1952.74,0.00047123,7]
[358577089,1745273508954,-500.0,0.00047123,2]
[358577090,1745273508963,-1469.516003,0.00047123,14]
[358577091,1745273508973,-500.0,0.00047123,7]
[358577092,1745273508982,-3067.74,0.00047123,7]
[358577093,1745273508992,-500.0,0.00047123,7]
[358577094,1745273509002,-1469.516011,0.00047123,14]
[358577095,1745273509011,-1668.15,0.00047123,7]
[358577096,1745273509021,-500.0,0.00047123,7]
[358577097,1745273509030,-1022.68,0.00047123,7]
[358577098,1745273509039,-500.0,0.00047123,7]
[358577099,1745273509048,-500.0,0.00047123,7]
[358577100,1745273509057,-662.83,0.00047123,7]
[358577101,1745273509067,-896.677004,0.00047123,14]
[358577102,1745273509076,-500.0,0.00047123,7]
[358577103,1745273509086,-500.0,0.00047123,7]
[358577104,1745273509095,-1574.74,0.00047123,7]
[358577105,1745273509105,-896.676996,0.00047123,14]
[358577106,1745273509114,-500.0,0.00047123,7]
[358577107,1745273509124,-1020.13,0.00047123,7]
[358577108,1745273509134,-310.94087298,0.00047123,7]
[358577109,1745273509144,-574.9,0.00047123,7]
[358577110,1745273509154,-981.52,0.00047123,7]
[358577111,1745273509163,-956.86,0.00047123,7]
[358577112,1745273509173,-500.0,0.00047123,7]
[358577113,1745273509183,-673.68,0.00047123,7]
[358577114,1745273509193,-500.0,0.00047123,7]
[358577115,1745273509203,-151.0,0.00047123,14]
[358577116,1745273509213,-500.0,0.00047123,7]
[358577117,1745273509223,-1117.56,0.00047123,7]
[358577118,1745273509233,-500.0,0.00047123,7]
[358577119,1745273509243,-500.0,0.00047123,7]
[358577120,1745273509252,-151.0,0.00047123,14]
[358577121,1745273509262,-500.0,0.00047123,7]
[358577122,1745273509272,-1471.8,0.00047123,7]
[358577123,1745273509282,-500.0,0.00047123,7]
[358577124,1745273509292,-1910.22,0.00047123,7]
[358577125,1745273509302,-1450.05,0.00047123,7]
[358577126,1745273509312,-500.0,0.00047123,7]
[358577127,1745273509322,-500.0,0.00047123,7]
[358577128,1745273509331,-997.29,0.00047123,7]
[358577129,1745273509340,-500.0,0.00047123,7]
[358577130,1745273509350,-500.0,0.00047123,7]
[358577131,1745273509360,-525.77,0.00047123,7]
[358577132,1745273509370,-1056.06,0.00047123,7]
[358577133,1745273509380,-3115.83,0.00047123,7]
[358577134,1745273509389,-3275.5,0.00047123,7]
[358577135,1745273509399,-1074.12,0.00047123,7]
[358577136,1745273509413,-1721.58,0.00047123,7]
[358577137,1745273509423,-500.0,0.00047123,7]
[358577138,1745273509433,-300.0,0.00047123,7]
[358577139,1745273509443,-500.0,0.00047123,7]
[358577140,1745273509455,-500.0,0.00047123,7]
[358577141,1745273509464,-500.0,0.00047123,7]
[358577142,1745273509474,-500.0,0.00047123,7]
[358577143,1745273509486,-1422.93,0.00047123,7]
[358577144,1745273509497,-500.0,0.00047123,7]
[358577145,1745273509507,-500.0,0.00047123,7]
[358577146,1745273509516,-500.0,0.00047123,7]
[358577147,1745273509527,-834.44,0.00047123,7]
[358577148,1745273509536,-500.0,0.00047123,7]
[358577149,1745273509546,-743.09,0.00047123,7]
[358577150,1745273509555,-2831.35,0.00047123,7]
[358577151,1745273509564,-3209.48,0.00047123,7]
[358577152,1745273509574,-500.0,0.00047123,7]
[358577153,1745273509584,-500.0,0.00047123,7]
[358577154,1745273509593,-671.48,0.00047123,7]
[358577155,1745273509603,-545.92663337,0.00047123,7]
[358577156,1745273509612,-500.0,0.00047123,7]
[358577157,1745273509621,-583.29,0.00047123,7]
[358577158,1745273509631,-500.0,0.00047123,7]
[358577159,1745273509640,-973.67,0.00047123,7]
[358577160,1745273509650,-1070.05,0.00047123,7]
[358577161,1745273509659,-1375.34,0.00047123,7]
[358577162,1745273509672,-500.0,0.00047123,7]
[358577163,1745273509682,-500.0,0.00047123,7]
[358577164,1745273509692,-7001.07,0.00047123,7]
[358577165,1745273509702,-2437.85,0.00047123,7]
[358577166,1745273509711,-500.0,0.00047123,7]
[358577167,1745273509721,-500.0,0.00047123,7]
[358577168,1745273509731,-2289.63,0.00047123,7]
[358577169,1745273509741,-500.0,0.00047123,7]
[358577170,1745273509750,-1522.45,0.00047123,7]
[358577171,1745273509759,-780.148884,0.00047123,14]
[358577172,1745273509771,-500.0,0.00047123,7]
[358577173,1745273509780,-274.417181,0.00047123,14]
[358577174,1745273509794,-829.97,0.00047123,7]
[358577175,1745273509803,-1573.28,0.00047123,7]
[358577176,1745273509813,-148396.62,0.00047123,7]
[358577177,1745273509822,-783.77,0.00047123,7]
[358577178,1745273509832,-780.148882,0.00047123,14]
[358577179,1745273509841,-274.417181,0.00047123,14]
[358577180,1745273509851,-500.0,0.00047123,7]
[358577181,1745273509861,-2454.7,0.00047123,7]
[358577182,1745273509871,-500.0,0.00047123,7]
[358577183,1745273509881,-500.0,0.00047123,7]
[358577184,1745273509891,-527.57,0.00047123,7]
[358577185,1745273509901,-612.25,0.00047123,7]
[358577186,1745273509910,-1343.12,0.00047123,7]
[358577187,1745273509920,-500.0,0.00047123,7]
[358577188,1745273509931,-2236.11,0.00047123,7]
[358577189,1745273509940,-500.0,0.00047123,7]
[358577190,1745273509950,-963.95,0.00047123,7]
[358577191,1745273509960,-997.67,0.00047123,7]
[358577192,1745273509970,-500.0,0.00047123,7]
[358577193,1745273509980,-1289.89,0.00047123,7]
[358577194,1745273509989,-655.96,0.00047123,7]
[358577195,1745273509999,-678.03,0.00047123,7]
[358577196,1745273510010,-569.75,0.00047123,7]
[358577197,1745273510021,-1596.74,0.00047123,7]
[358577198,1745273510031,-500.0,0.00047123,7]
[358577199,1745273510041,-3240.43,0.00047123,7]
[358577200,1745273510050,-500.0,0.00047123,7]
[358577201,1745273510060,-518.73,0.00047123,7]
[358577202,1745273510070,-209.126942,0.00047123,14]
[358577203,1745273510079,-500.0,0.00047123,7]
[358577204,1745273510089,-891.42,0.00047123,7]
[358577205,1745273510099,-511.37,0.00047123,7]
[358577206,1745273510108,-1959.65,0.00047123,7]
[358577207,1745273510118,-209.126942,0.00047123,14]
[358577208,1745273510128,-804.59,0.00047123,7]
[358577209,1745273510137,-2145.1,0.00047123,7]
[358577210,1745273510146,-500.0,0.00047123,7]
[358577211,1745273510156,-5109.84,0.00047123,7]
[358577212,1745273510166,-500.0,0.00047123,7]
[358577213,1745273510176,-500.0,0.00047123,7]
[358577214,1745273510186,-500.0,0.00047123,7]
[358577215,1745273510195,-561.55,0.00047123,7]
[358577216,1745273510205,-1484.19,0.00047123,7]
[358577217,1745273510215,-500.0,0.00047123,7]
[358577218,1745273510224,-1100.11,0.00047123,7]
[358577219,1745273510234,-859.56,0.00047123,7]
[358577220,1745273510244,-170.21770281,0.00047123,7]
[358577221,1745273510254,-500.0,0.00047123,7]
[358577222,1745273510263,-574.2,0.00047123,7]
[358577223,1745273510274,-2581.69,0.00047123,7]
[358577224,1745273510283,-500.0,0.00047123,7]
[358577225,1745273510294,-596.37,0.00047123,7]
[358577226,1745273510305,-1348.97,0.00047123,7]
[358577227,1745273510315,-620.48899207,0.00047123,7]
[358577228,1745273510324,-889.4,0.00047123,7]
[358577229,1745273510335,-948.97,0.00047123,7]
[358577230,1745273510345,-868.91,0.00047123,7]
[358577231,1745273510356,-500.0,0.00047123,7]
[358577232,1745273510367,-2009.27,0.00047123,7]
[358577233,1745273510376,-500.0,0.00047123,7]
[358577234,1745273510385,-717.21,0.00047123,7]
[358577235,1745273510394,-500.0,0.00047123,7]
[358577236,1745273510405,-1570.7,0.00047123,7]
[358577237,1745273510418,-500.0,0.00047123,7]
[358577238,1745273510427,-500.0,0.00047123,7]
[358577239,1745273510437,-151.0,0.00047123,14]
[358577240,1745273510446,-500.0,0.00047123,7]
[358577241,1745273510456,-1677.09,0.00047123,7]
[358577242,1745273510466,-1058.05,0.00047123,7]
[358577243,1745273510475,-500.0,0.00047123,7]
[358577244,1745273510484,-151.0,0.00047123,14]
[358577245,1745273510494,-1248.18,0.00047123,7]
[358577246,1745273510503,-508.66,0.00047123,7]
[358577247,1745273510513,-500.0,0.00047123,7]
[358577248,1745273510523,-616.38,0.00047123,7]
[358577249,1745273510533,-2278.19,0.00047123,7]
[358577250,1745273510542,-151.0,0.00047123,14]
[358577251,1745273510553,-1336.46,0.00047123,7]
[358577252,1745273510564,-2099.91,0.00047123,7]
[358577253,1745273510574,-500.0,0.00047123,7]
[358577254,1745273510584,-500.0,0.00047123,7]
[358577255,1745273510593,-500.0,0.00047123,7]
[358577256,1745273510603,-1053.78,0.00047123,7]
[358577257,1745273510612,-2998.83,0.00047123,7]
[358577258,1745273510622,-831.47,0.00047123,7]
[358577259,1745273510631,-500.0,0.00047123,7]
[358577260,1745273510641,-1357.54,0.00047123,7]
[358577261,1745273510651,-500.0,0.00047123,7]
[358577262,1745273510660,-743.94,0.00047123,7]
[358577263,1745273510669,-1579.09,0.00047123,7]
[358577264,1745273510679,-500.0,0.00047123,7]
[358577265,1745273510689,-2781.12,0.00047123,7]
[358577266,1745273510697,-1075.24,0.00047123,7]
[358577267,1745273510707,-592.06,0.00047123,7]
[358577268,1745273510716,-500.0,0.00047123,7]
[358577269,1745273510726,-575.54,0.00047123,7]
[358577270,1745273510735,-1561.76,0.00047123,7]
[358577271,1745273510745,-1637.73,0.00047123,7]
[358577272,1745273510754,-1456.28,0.00047123,7]
[358577273,1745273510764,-500.0,0.00047123,7]
[358577274,1745273510774,-2605.24,0.00047123,7]
[358577275,1745273510784,-853.74,0.00047123,7]
[358577276,1745273510794,-2212.34,0.00047123,7]
[358577277,1745273510804,-2220.57,0.00047123,7]
[358577278,1745273510813,-598.39,0.00047123,7]
[358577279,1745273510823,-901.27,0.00047123,7]
[358577280,1745273510833,-578.81,0.00047123,7]
[358577281,1745273510842,-500.0,0.00047123,7]
[358577282,1745273510852,-500.0,0.00047123,7]
[358577283,1745273510861,-500.0,0.00047123,7]
[358577284,1745273510871,-1275.11,0.00047123,7]
[358577285,1745273510881,-500.0,0.00047123,7]
[358577286,1745273510890,-500.0,0.00047123,7]
[358577287,1745273510900,-2355.08,0.00047123,7]
[358577288,1745273510909,-1605.45,0.00047123,7]
[358577289,1745273510919,-2547.52,0.00047123,7]
[358577290,1745273510928,-500.0,0.00047123,7]
[358577291,1745273510937,-500.0,0.00047123,7]
[358577292,1745273510946,-500.0,0.00047123,7]
[358577293,1745273510956,-1104.86,0.00047123,7]
[358577294,1745273510965,-2642.88,0.00047123,7]
[358577295,1745273510976,-737.39,0.00047123,7]
[358577296,1745273510986,-1339.26,0.00047123,7]
[358577297,1745273510997,-1748.44,0.00047123,2]
[358577298,1745273511008,-500.0,0.00047123,7]
[358577299,1745273511018,-662.24,0.00047123,7]
[358577300,1745273511028,-500.0,0.00047123,7]
[358577301,1745273511038,-500.0,0.00047123,7]
[358577302,1745273511047,-1174.25,0.00047123,7]
[358577303,1745273511057,-798.15,0.00047123,7]
[358577304,1745273511067,-500.0,0.00047123,7]
[358577305,1745273511077,-5495.09,0.00047123,7]
[358577306,1745273511087,-500.0,0.00047123,7]
[358577307,1745273511097,-500.0,0.00047123,7]
[358577308,1745273511107,-707.27,0.00047123,7]
[358577309,1745273511116,-250.0,0.0004715,30]
[358577310,1745273511126,-500.0,0.00047157,120]
[358577311,1745273511135,-2000.0,0.00047157,120]
[358577312,1745273511144,-200.0,0.00047157,120]
[358577313,1745273511154,-1000.0,0.00047179,2]
[358577314,1745273511164,-551.55030507,0.00047233,120]
[358577315,1745273511173,-250.0,0.0004725,30]
[358577316,1745273511183,-150.0,0.0004727,7]
[358577317,1745273511192,-250.0,0.000473,30]
[358577318,1745273511202,-941.0,0.000473,30]
[358577319,1745273511212,-990.9,0.000473,30]
[358577320,1745273511221,-113754.0,0.00047383,10]
[358577321,1745273511231,-1000.0,0.00047384,2]
[358577322,1745273511241,-887.0,0.00047384,10]
[358577323,1745273511251,-250.0,0.000474,30]
[358577324,1745273511260,-350.65,0.000474,2]
[358577325,1745273511270,-551.55030507,0.00047425,120]
[358577326,1745273511280,-600.0,0.00047477,120]
[358577327,1745273511289,-150.042206,0.00047498,120]
[358577328,1745273511299,-250.0,0.000475,30]
[358577329,1745273511308,-153.71007149,0.000475,60]
[358577330,1745273511318,-551.55030507,0.00047589,120]
[358577331,1745273511327,-5247.60820403,0.000476,2]
[358577332,1745273511337,-152.706656,0.00047604,14]
[358577333,1745273511346,-18523.1606985,0.00047638,2]
[358577334,1745273511356,-586.2222644,0.00047638,2]
[358577335,1745273511366,-7113.0128909,0.00047638,2]
[358577336,1745273511376,-1264.3510795,0.00047638,2]
[358577337,1745273511385,-236.12981963,0.00047644,2]
[358577338,1745273511395,-5586.15090313,0.00047644,2]
[358577339,1745273511405,-151.0,0.00047671,14]
[358577340,1745273511418,-1656.741814,0.00047671,7]
[358577341,1745273511428,-153.003464,0.00047671,14]
[358577342,1745273511438,-500.406308,0.00047671,7]
[358577343,1745273511447,-168.244593,0.00047671,14]
[358577344,1745273511459,-168.244593,0.00047671,14]
[358577345,1745273511469,-151.0,0.00047671,14]
[358577346,1745273511478,-151.0,0.00047671,14]
[358577347,1745273511487,-500.0,0.00047671,7]
[358577348,1745273511497,-500.0,0.00047671,7]
[358577349,1745273511507,-259.74883327,0.00047671,7]
[358577350,1745273511516,-500.0,0.00047671,7]
[358577351,1745273511525,-500.0,0.00047671,7]
[358577352,1745273511535,-1577.55411,0.00047671,14]
[358577353,1745273511545,-1577.55411,0.00047671,14]
[358577354,1745273511555,-500.0,0.00047671,7]
[358577355,1745273511564,-500.0,0.00047671,7]
[358577356,1745273511574,-500.0,0.00047671,7]
[358577357,1745273511583,-500.0,0.00047671,7]
[358577358,1745273511593,-500.0,0.00047671,7]
[358577359,1745273511602,-864.57,0.00047671,7]
[358577360,1745273511612,-500.0,0.00047671,7]
[358577361,1745273511622,-500.0,0.00047671,7]
[358577362,1745273511631,-500.0,0.00047671,7]
[358577363,1745273511641,-500.0,0.00047671,7]
[358577364,1745273511650,-500.0,0.00047671,7]
[358577365,1745273511660,-500.0,0.00047671,7]
[358577366,1745273511669,-500.0,0.00047671,7]
[358577367,1745273511678,-500.0,0.00047671,7]
[358577368,1745273511687,-151.0,0.00047671,14]
[358577369,1745273511696,-442.54672931,0.00047671,7]
[358577370,1745273511706,-500.0,0.00047671,7]
[358577371,1745273511716,-674.89,0.00047671,7]
[358577372,1745273511725,-500.0,0.00047671,7]
[358577373,1745273511734,-500.0,0.00047671,7]
[358577374,1745273511744,-1669.69,0.00047671,7]
[358577375,1745273511753,-500.0,0.00047671,7]
[358577376,1745273511762,-500.0,0.00047671,7]
[358577377,1745273511772,-500.0,0.00047671,7]
[358577378,1745273511782,-791.37,0.00047671,7]
[358577379,1745273511790,-500.0,0.00047671,7]
[358577380,1745273511800,-500.0,0.00047671,7]
[358577381,1745273511809,-500.0,0.00047671,7]
[358577382,1745273511819,-1023.25,0.00047671,7]
[358577383,1745273511828,-500.0,0.00047671,7]
[358577384,1745273511837,-1458.87,0.00047671,7]
[358577385,1745273511846,-500.0,0.00047671,7]
[358577386,1745273511856,-500.0,0.00047671,7]
[358577387,1745273511865,-500.0,0.00047671,7]
[358577388,1745273511875,-500.0,0.00047671,7]
[358577389,1745273511884,-500.0,0.00047671,7]
[358577390,1745273511894,-500.0,0.00047671,7]
[358577391,1745273511903,-575.97183244,0.00047671,7]
[358577392,1745273511912,-254.420527,0.00047671,14]
[358577393,1745273512086,-500.0,0.00047671,7]
[358577394,1745273512124,-500.0,0.00047671,7]
[358577395,1745273512134,-500.0,0.00047671,7]
[358577396,1745273512144,-529.82,0.00047671,7]
[358577397,1745273512154,-500.0,0.00047671,7]
[358577398,1745273512163,-500.0,0.00047671,7]
[358577399,1745273512173,-500.0,0.00047671,7]
[358577400,1745273512183,-500.0,0.00047671,7]
[358577401,1745273512192,-500.0,0.00047671,7]
[358577402,1745273512201,-500.0,0.00047671,7]
[358577403,1745273512211,-969.44,0.00047671,7]
[358577404,1745273512220,-500.0,0.00047671,7]
[358577405,1745273512230,-500.0,0.00047671,7]
[358577406,1745273512239,-500.0,0.00047671,7]
[358577407,1745273512248,-341.69091177,0.00047671,7]
[358577408,1745273512257,-500.0,0.00047671,7]
[358577409,1745273512267,-500.0,0.00047671,7]
[358577410,1745273512277,-500.0,0.00047671,7]
[358577411,1745273512287,-629.509786,0.00047671,7]
[358577412,1745273512296,-690.93,0.00047671,7]
[358577413,1745273512307,-500.0,0.00047671,7]
[358577414,1745273512316,-500.0,0.00047671,7]
[358577415,1745273512325,-500.0,0.00047671,7]
[358577416,1745273512335,-593.3,0.00047671,7]
[358577417,1745273512345,-1494.4,0.00047671,7]
[358577418,1745273512354,-815.18,0.00047671,7]
[358577419,1745273512364,-2474.26,0.00047671,7]
[358577420,1745273512373,-500.0,0.00047671,7]
[358577421,1745273512383,-847.59,0.00047671,7]
[358577422,1745273512393,-847.27,0.00047671,7]
[358577423,1745273512402,-1385.14,0.00047671,7]
[358577424,1745273512415,-1515.36,0.00047671,7]
[358577425,1745273512425,-710.84,0.00047671,7]
[358577426,1745273512435,-585.36,0.00047671,7]
[358577427,1745273512446,-540.95,0.00047671,7]
[358577428,1745273512455,-500.0,0.00047671,7]
[358577429,1745273512465,-500.0,0.00047671,7]
[358577430,1745273512475,-2340.33,0.00047671,7]
[358577431,1745273512485,-500.0,0.00047671,7]
[358577432,1745273512494,-500.0,0.00047671,7]
[358577433,1745273512504,-500.0,0.00047671,7]
[358577434,1745273512515,-500.0,0.00047671,7]
[358577435,1745273512524,-623.44,0.00047671,7]
[358577436,1745273512534,-500.0,0.00047671,7]
[358577437,1745273512544,-500.0,0.00047671,7]
[358577438,1745273512553,-500.0,0.00047671,7]
[358577439,1745273512563,-191.24326896,0.00047671,7]
[358577440,1745273512573,-826.96,0.00047671,7]
[358577441,1745273512583,-500.0,0.00047671,7]
[358577442,1745273512593,-500.0,0.00047671,7]
[358577443,1745273512603,-500.0,0.00047671,7]
[358577444,1745273512612,-500.0,0.00047671,7]
[358577445,1745273512621,-500.0,0.00047671,7]
[358577446,1745273512631,-519.36,0.00047671,7]
[358577447,1745273512642,-1297.18,0.00047671,7]
[358577448,1745273512651,-500.0,0.00047671,7]
[358577449,1745273512660,-500.0,0.00047671,7]
[358577450,1745273512672,-514.13,0.00047671,7]
[358577451,1745273512682,-500.0,0.00047671,7]
[358577452,1745273512693,-980.71,0.00047671,7]
[358577453,1745273512704,-500.0,0.00047671,7]
[358577454,1745273512715,-500.0,0.00047671,7]
[358577455,1745273512726,-249.49831803,0.00047671,7]
[358577456,1745273512735,-500.0,0.00047671,7]
[358577457,1745273512746,-706.63,0.00047671,7]
[358577458,1745273512758,-500.0,0.00047671,7]
[358577459,1745273512769,-579.09,0.00047671,7]
[358577460,1745273512778,-858.69,0.00047671,7]
[358577461,1745273512788,-500.0,0.00047671,7]
[358577462,1745273512797,-881.75,0.00047671,7]
[358577463,1745273512806,-711.53,0.00047671,7]
[358577464,1745273512816,-884.65,0.00047671,7]
[358577465,1745273512825,-500.0,0.00047671,7]
[358577466,1745273512834,-904.67,0.00047671,7]
[358577467,1745273512844,-500.0,0.00047671,7]
[358577468,1745273512854,-1183.26,0.00047671,7]
[358577469,1745273512864,-546.21,0.00047671,7]
[358577470,1745273512874,-500.0,0.00047671,7]
[358577471,1745273512883,-1290.34,0.00047671,7]
[358577472,1745273512894,-1419.16,0.00047671,7]
[358577473,1745273512903,-500.0,0.00047671,7]
[358577474,1745273512913,-863.91,0.00047671,7]
[358577475,1745273512923,-1668.61,0.00047671,7]
[358577476,1745273512933,-500.0,0.00047671,7]
[358577477,1745273512943,-341.59490279,0.00047671,7]
[358577478,1745273512952,-1001.34,0.00047671,7]
[358577479,1745273512962,-500.0,0.00047671,7]
[358577480,1745273512971,-500.0,0.00047671,7]
[358577481,1745273512980,-500.0,0.00047671,7]
[358577482,1745273512991,-500.0,0.00047671,7]
[358577483,1745273513000,-500.0,0.00047671,7]
[358577484,1745273513010,-2387.71,0.00047671,7]
[358577485,1745273513020,-500.0,0.00047671,7]
[358577486,1745273513029,-500.0,0.00047671,7]
[358577487,1745273513039,-500.0,0.00047671,7]
[358577488,1745273513048,-1099.51,0.00047671,7]
[358577489,1745273513057,-657.93,0.00047671,7]
[358577490,1745273513068,-500.0,0.00047671,7]
[358577491,1745273513077,-500.0,0.00047671,7]
[358577492,1745273513087,-786.17,0.00047671,7]
[358577493,1745273513097,-500.0,0.00047671,7]
[358577494,1745273513107,-1738.61,0.00047671,7]
[358577495,1745273513116,-1177.97,0.00047671,7]
[358577496,1745273513126,-1533.1,0.00047671,7]
[358577497,1745273513136,-500.0,0.00047671,7]
[358577498,1745273513145,-500.0,0.00047671,7]
[358577499,1745273513154,-601.4,0.00047671,7]
[358577500,1745273513164,-500.0,0.00047671,7]
[358577501,1745273513173,-604.48,0.00047671,7]
[358577502,1745273513182,-500.0,0.00047671,7]
[358577503,1745273513192,-500.0,0.00047671,7]
[358577504,1745273513201,-500.0,0.00047671,7]
[358577505,1745273513211,-947.57,0.00047671,7]
[358577506,1745273513220,-190.63089258,0.00047671,7]
[358577507,1745273513229,-500.0,0.00047671,7]
[358577508,1745273513239,-500.0,0.00047671,7]
[358577509,1745273513248,-1198.33,0.00047671,7]
[358577510,1745273513258,-779.43,0.00047671,7]
[358577511,1745273513269,-927.9,0.00047671,7]
[358577512,1745273513278,-580.05,0.00047671,7]
[358577513,1745273513287,-500.0,0.00047671,7]
[358577514,1745273513297,-500.0,0.00047671,7]
[358577515,1745273513307,-500.0,0.00047671,7]
[358577516,1745273513317,-1505.54,0.00047671,7]
[358577517,1745273513326,-500.0,0.00047671,7]
[358577518,1745273513335,-500.0,0.00047671,7]
[358577519,1745273513345,-635.74,0.00047671,7]
[358577520,1745273513354,-729.68,0.00047671,7]
[358577521,1745273513364,-500.0,0.00047671,7]
[358577522,1745273513374,-1567.41,0.00047671,7]
[358577523,1745273513383,-1953.23,0.00047671,7]
[358577524,1745273513392,-1438.84,0.00047671,7]